fUSD/lending_fUSD_20241002
["ID","MTS","AMOUNT","RATE_DAILY","PERIOD"]
[339672244,1727827836717,-531.062381,0.00027461,7]
[339672245,1727827836726,-531.062381,0.00027461,7]
[339672246,1727827836735,-1000.0,0.000275,30]
[339672247,1727827836745,-284.91,0.00027528,2]
[339672248,1727827836755,-2000.0,0.00027551,120]
[339672249,1727827836765,-151.0,0.00027551,7]
[339672250,1727827836774,-151.0,0.00027551,7]
[339672251,1727827836783,-262.814826,0.00027551,7]
[339672252,1727827836792,-262.814826,0.00027551,7]
[339672253,1727827836802,-197.938352,0.00027551,7]
[339672254,1727827836811,-151.0,0.00027551,7]
[339672255,1727827836820,-197.938352,0.00027551,7]
[339672256,1727827836830,-151.0,0.00027551,7]
[339672257,1727827836839,-151.0,0.00027551,7]
[339672258,1727827836848,-200.0,0.000277,12]
[339672259,1727827836858,-1000.0,0.0002785,30]
[339672260,1727827836867,-500.0,0.00027945,120]
[339672261,1727827836877,-404.853311,0.00027945,7]
[339672262,1727827836886,-404.853311,0.00027945,7]
[339672263,1727827836895,-151.0,0.00027945,7]
[339672264,1727827836905,-151.0,0.00027945,7]
[339672265,1727827836914,-151.0,0.00027945,7]
[339672266,1727827836923,-151.0,0.00027945,7]
[339672267,1727827836933,-283.694622,0.00027945,7]
[339672268,1727827836942,-283.694622,0.00027945,7]
[339672269,1727827836951,-151.0,0.00027945,7]
[339672270,1727827836961,-151.0,0.00027945,7]
[339672271,1727827836971,-151.0,0.00027945,7]
[339672272,1727827836981,-151.0,0.00027945,7]
[339672273,1727827836990,-151.0,0.00027945,7]
[339672274,1727827836999,-200.0,0.00027998,120]
[339672275,1727827837010,-1000.0,0.00028,30]
[339672276,1727827837020,-900.0,0.00028,80]
[339672277,1727827837029,-158.43,0.00028283,2]
[339672278,1727827837039,-427.94,0.00028283,2]
[339672279,1727827837049,-150.0,0.00028283,2]
[339672280,1727827837058,-716.44,0.00028283,2]
[339672281,1727827837067,-150.0,0.00028283,2]
[339672282,1727827837076,-533.85,0.00028283,2]
[339672283,1727827837086,-150.0,0.00028283,2]
[339672284,1727827837095,-150.0,0.00028283,2]
[339672285,1727827837104,-533.85,0.00028283,2]
[339672286,1727827837115,-150.0,0.00028283,2]
[339672287,1727827837126,-533.85,0.00028283,2]
[339672288,1727827837136,-150.0,0.00028283,2]
[339672289,1727827837147,-533.85,0.00028283,2]
[339672290,1727827837156,-150.0,0.00028283,2]
[339672291,1727827837165,-150.0,0.00028283,2]
[339672292,1727827837175,-150.0,0.00028283,2]
[339672293,1727827837184,-326.049407,0.000283,2]
[339672294,1727827837193,-151.0,0.00028354,7]
[339672295,1727827837208,-207.803299,0.00028354,7]
[339672296,1727827837217,-207.803299,0.00028354,7]
[339672297,1727827837226,-151.0,0.00028354,7]
[339672298,1727827837235,-151.0,0.00028354,7]
[339672299,1727827837245,-324.259207,0.00028354,7]
[339672300,1727827837255,-324.259207,0.00028354,7]
[339672301,1727827837272,-151.972064,0.00028354,7]
[339672302,1727827837282,-398.89672,0.00028354,7]
[339672303,1727827837291,-398.89672,0.00028354,7]
[339672304,1727827837301,-151.0,0.00028354,7]
[339672305,1727827837310,-176.106504,0.00028354,7]
[339672306,1727827837320,-207.294669,0.00028354,7]
[339672307,1727827837329,-176.106504,0.00028354,7]
[339672308,1727827837339,-207.294669,0.00028354,7]
[339672309,1727827837348,-631.096419,0.00028354,7]
[339672310,1727827837358,-631.096419,0.00028354,7]
[339672311,1727827837368,-198.638631,0.00028354,7]
[339672312,1727827837377,-168.0,0.00028364,4]
[339672313,1727827837387,-32208.762369,0.0002839,4]
[339672314,1727827837396,-282.025811,0.00028399,7]
[339672315,1727827837406,-282.025811,0.00028399,7]
[339672316,1727827837415,-151.0,0.000284,7]
[339672317,1727827837425,-151.0,0.000284,7]
[339672318,1727827837434,-208.430854,0.000284,7]
[339672319,1727827837444,-151.0,0.000284,7]
[339672320,1727827837454,-404.853311,0.000284,7]
[339672321,1727827837463,-404.853311,0.000284,7]
[339672322,1727827837472,-151.0,0.000284,7]
[339672323,1727827837481,-151.0,0.000284,7]
[339672324,1727827837491,-151.0,0.000284,7]
[339672326,1727827837500,-151.0,0.000284,7]
[339672327,1727827837513,-151.0,0.000284,7]
[339672328,1727827837522,-151.0,0.000284,7]
[339672329,1727827837531,-262.814826,0.000284,7]
[339672330,1727827837540,-262.814826,0.000284,7]
[339672331,1727827837549,-197.938352,0.000284,7]
[339672332,1727827837558,-151.0,0.000284,7]
[339672335,1727827837567,-197.938352,0.000284,7]
[339672336,1727827837577,-1103.780855,0.000284,7]
[339672337,1727827837586,-776.502386,0.000284,7]
[339672339,1727827837595,-776.502386,0.000284,7]
[339672342,1727827837682,-367.663263,0.000284,7]
[339672343,1727827837692,-367.663263,0.000284,7]
[339672344,1727827837702,-151.0,0.000284,7]
[339672345,1727827837711,-151.0,0.000284,7]
[339672346,1727827837720,-153.904628,0.000284,7]
[339672347,1727827837730,-161.059381,0.000284,7]
[339672348,1727827837740,-161.059381,0.000284,7]
[339672349,1727827837749,-151.0,0.000284,7]
[339672350,1727827837759,-151.0,0.000284,7]
[339672351,1727827837768,-151.0,0.000284,7]
[339672352,1727827837777,-531.062381,0.000284,7]
[339672353,1727827837787,-531.062381,0.000284,7]
[339672354,1727827837796,-283.694622,0.00028403,7]
[339672355,1727827837805,-283.694622,0.00028403,7]
[339672356,1727827837814,-151.0,0.00028403,7]
[339672357,1727827837823,-151.0,0.00028403,7]
[339672358,1727827837832,-151.0,0.00028403,7]
[339672359,1727827837842,-151.0,0.00028403,7]
[339672360,1727827837851,-151.0,0.00028403,7]
[339672361,1727827837861,-200.0,0.00028403,30]
[339672362,1727827837870,-200.0,0.00028403,30]
[339672363,1727827837880,-200.0,0.00028403,30]
[339672364,1727827837889,-200.0,0.00028403,30]
[339672365,1727827837899,-200.0,0.00028403,30]
[339672366,1727827837909,-200.0,0.00028403,30]
[339672367,1727827837919,-200.0,0.00028403,30]
[339672368,1727827837930,-200.0,0.00028403,30]
[339672369,1727827837941,-200.0,0.00028403,30]
[339672370,1727827837950,-200.0,0.00028403,30]
[339672371,1727827837959,-200.0,0.00028403,30]
[339672372,1727827837969,-200.0,0.00028403,30]
[339672373,1727827837978,-200.0,0.00028403,30]
[339672374,1727827837988,-200.0,0.00028403,30]
[339672375,1727827837997,-200.0,0.00028403,30]
[339672376,1727827838008,-200.0,0.00028403,30]
[339672377,1727827838018,-200.0,0.00028403,30]
[339672378,1727827838027,-200.0,0.00028403,30]
[339672379,1727827838036,-200.0,0.00028403,30]
[339672380,1727827838044,-200.0,0.00028403,30]
[339672381,1727827838054,-200.0,0.00028403,30]
[339672383,1727827838063,-200.0,0.00028403,30]
[339672384,1727827838072,-200.0,0.00028403,30]
[339672385,1727827838081,-200.0,0.00028403,30]
[339672386,1727827838091,-200.0,0.00028403,30]
[339672388,1727827838100,-200.0,0.00028403,30]
[339672389,1727827838109,-200.0,0.00028403,30]
[339672390,1727827838118,-200.0,0.00028403,30]
[339672391,1727827838127,-200.0,0.00028403,30]
[339672392,1727827838136,-200.0,0.00028403,30]
[339672393,1727827838145,-200.0,0.00028403,30]
[339672394,1727827838154,-200.0,0.00028403,30]
[339672395,1727827838163,-200.0,0.00028403,30]
[339672396,1727827838173,-200.0,0.00028403,30]
[339672397,1727827838182,-200.0,0.00028403,30]
[339672398,1727827838191,-200.0,0.00028403,30]
[339672399,1727827838204,-200.0,0.00028403,30]
[339672400,1727827838213,-200.0,0.00028403,30]
[339672401,1727827838222,-200.0,0.00028403,30]
[339672402,1727827838231,-200.0,0.00028403,30]
[339672403,1727827838241,-200.0,0.00028403,30]
[339672404,1727827838251,-200.0,0.00028403,30]
[339672405,1727827838262,-200.0,0.00028403,30]
[339672406,1727827838271,-200.0,0.00028403,30]
[339672407,1727827838281,-200.0,0.00028403,30]
[339672408,1727827838290,-200.0,0.00028403,30]
[339672409,1727827838300,-200.0,0.00028403,30]
[339672410,1727827838309,-200.0,0.00028403,30]
[339672411,1727827838318,-200.0,0.00028403,30]
[339672412,1727827838327,-200.0,0.00028403,30]
[339672413,1727827838336,-200.0,0.00028403,30]
[339672414,1727827838346,-150.0,0.00028403,30]
[339672415,1727827838357,-535.91213739,0.00028403,120]
[339672416,1727827838366,-600.299999,0.00028403,30]
[339672417,1727827838375,-500.0,0.00028545,120]
[339672418,1727827838384,-2000.0,0.00028545,120]
[339672419,1727827838393,-500.0,0.00028545,120]
[339672420,1727827838403,-500.0,0.00028545,120]
[339672421,1727827838412,-200.0,0.00028545,120]
[339672422,1727827838421,-200.0,0.000287,13]
[339672423,1727827838431,-15516.57192673,0.00029,14]
[339672424,1727827838440,-700.0,0.00029,2]
[339672425,1727827838450,-5720.35487606,0.00029012,15]
[339672426,1727827838459,-428.61,0.00029147,2]
[339672427,1727827838469,-428.61,0.00029147,2]
[339672428,1727827838478,-428.15,0.00029147,2]
[339672429,1727827838487,-150.0,0.00029147,2]
[339672430,1727827838496,-150.0,0.00029147,2]
[339672431,1727827838506,-53.15404949,0.00029147,2]
[339672475,1727827840861,-1626.618746,0.00020986,2]
[339672476,1727827840871,-177.37,0.00023393,2]
[339672477,1727827840880,-1006.52897445,0.00024195,7]
[339672478,1727827840891,-516.07115909,0.00024195,7]
[339672479,1727827840907,-104.01861246,0.00024195,7]
[339672480,1727827840916,-494.73512165,0.00025179,7]
[339672481,1727827840927,-312.29000005,0.00025179,7]
[339672482,1727827840939,-819.5936243,0.00025179,7]
[339672483,1727827840948,-177.37,0.00026317,120]
[339672484,1727827840958,-13326.05,0.00027397,10]
[339672485,1727827840967,-1626.618746,0.000274,7]
[339672486,1727827840976,-1626.618746,0.000284,7]
[339672487,1727827840986,-96.84595051,0.00029147,2]
[339672488,1727827840996,-150.0,0.00029147,2]
[339672489,1727827841005,-177.37,0.00029241,120]
[339672490,1727827841016,-200.0,0.00029353,120]
[339672491,1727827841027,-500.0,0.00029431,120]
[339672492,1727827841036,-200.0,0.000297,14]
[339672493,1727827841045,-284.91,0.00029792,2]
[339672494,1727827841055,-1612.0,0.000299,2]
[339672495,1727827841064,-151.0,0.0002999,7]
[339672496,1727827841073,-151.0,0.0002999,7]
[339672497,1727827841083,-207.803299,0.0002999,7]
[339672498,1727827841092,-207.803299,0.0002999,7]
[339672499,1727827841101,-151.0,0.0002999,7]
[339672500,1727827841110,-282.025811,0.0002999,7]
[339672501,1727827841119,-282.025811,0.0002999,7]
[339672502,1727827841128,-2000.0,0.00029999,2]
[339672503,1727827841137,-197.0,0.0003,2]
[339672504,1727827841147,-132.97582295,0.0003,11]
[339672505,1727827841162,-867.02417705,0.0003,11]
[339672506,1727827841171,-1000.0,0.0003,11]
[339672507,1727827841181,-1000.0,0.0003,11]
[339672508,1727827841191,-1000.0,0.0003,11]
[339672509,1727827841203,-1000.0,0.0003,11]
[339672510,1727827841212,-1000.0,0.0003,11]
[339672511,1727827841222,-1000.0,0.0003,11]
[339672512,1727827841231,-1000.0,0.0003,11]
[339672513,1727827841240,-1000.0,0.0003,11]
[339672514,1727827841251,-1000.0,0.0003,11]
[339672515,1727827841261,-151.0,0.0003,7]
[339672516,1727827841270,-324.259207,0.0003,7]
[339672517,1727827841280,-324.259207,0.0003,7]
[339672518,1727827841290,-398.89672,0.0003,7]
[339672519,1727827841299,-398.89672,0.0003,7]
[339672520,1727827841308,-151.0,0.0003,7]
[339672521,1727827841317,-176.106504,0.0003,7]
[339672522,1727827841327,-207.294669,0.0003,7]
[339672523,1727827841336,-176.106504,0.0003,7]
[339672524,1727827841345,-207.294669,0.0003,7]
[339672525,1727827841354,-631.096419,0.0003,7]
[339672526,1727827841364,-631.096419,0.0003,7]
[339672527,1727827841374,-151.0,0.0003,7]
[339672528,1727827841383,-151.0,0.0003,7]
[339672529,1727827841393,-151.0,0.0003,7]
[339672530,1727827841403,-531.062381,0.0003,7]
[339672531,1727827841412,-531.062381,0.0003,7]
[339672532,1727827841422,-1626.618746,0.0003,7]
[339672533,1727827841431,-2000.0,0.00030014,120]
[339672534,1727827841441,-776.502386,0.00030014,7]
[339672535,1727827841451,-776.502386,0.00030014,7]
[339672536,1727827841461,-367.663263,0.00030014,7]
[339672537,1727827841470,-367.663263,0.00030014,7]
[339672538,1727827841479,-151.0,0.00030014,7]
[339672539,1727827841488,-161.059381,0.00030014,7]
[339672540,1727827841498,-161.059381,0.00030014,7]
[339672541,1727827841507,-258.88723589,0.00030137,60]
[339672542,1727827841516,-200.0,0.00030161,120]
[339672543,1727827841526,-500.0,0.00030674,120]
[339672544,1727827841535,-200.0,0.000307,15]
[339672545,1727827841544,-404.853311,0.000309,7]
[339672546,1727827841554,-404.853311,0.000309,7]
[339672547,1727827841563,-151.0,0.000309,7]
[339672548,1727827841572,-151.0,0.000309,7]
[339672549,1727827841583,-286.44767,0.000309,7]
[339672550,1727827841592,-151.0,0.000309,7]
[339672551,1727827841602,-151.0,0.000309,7]
[339672552,1727827841611,-151.0,0.000309,7]
[339672553,1727827841621,-262.814826,0.000309,7]
[339672554,1727827841631,-262.814826,0.000309,7]
[339672555,1727827841641,-197.938352,0.000309,7]
[339672556,1727827841650,-151.0,0.000309,7]
[339672557,1727827841661,-197.938352,0.000309,7]
[339672558,1727827841671,-151.0,0.000309,7]
[339672559,1727827841682,-283.694622,0.000309,7]
[339672560,1727827841692,-283.694622,0.000309,7]
[339672561,1727827841701,-151.0,0.000309,7]
[339672562,1727827841711,-151.0,0.000309,7]
[339672563,1727827841721,-151.0,0.000309,7]
[339672564,1727827841731,-151.0,0.000309,7]
[339672565,1727827841741,-151.0,0.000309,7]
[339672566,1727827841751,-151.0,0.00030908,7]
[339672567,1727827841762,-150.0,0.00030923,120]
[339672568,1727827841772,-209.0,0.0003098,2]
[339672569,1727827841782,-1565.60139368,0.0003098,5]
[339672570,1727827841794,-381.33465368,0.0003098,5]
[339672571,1727827841809,-1520.98047815,0.0003098,5]
[339672572,1727827841820,-5744.72923051,0.0003098,5]
[339672573,1727827842183,-1626.618746,0.00020986,2]
[339672574,1727827842193,-1626.618746,0.00024195,7]
[339672575,1727827842208,-104.35689,0.00025179,7]
[339672576,1727827842293,-1522.261856,0.00025179,7]
[339672577,1727827842303,-1626.618746,0.000274,7]
[339672578,1727827842312,-4362.24542372,0.0003098,5]
[339672581,1727827842917,-1626.618746,0.000284,7]
[339672582,1727827842927,-1085.18125404,0.0003,7]
[339672592,1727827845651,-541.43749196,0.0003,7]
[339672593,1727827845661,-21491.40664436,0.0003098,5]
[339672594,1727827845670,-28887.14065469,0.0003099,5]
[339672595,1727827845758,-3321.62171431,0.0003099,5]
[339672596,1727827845768,-151.0,0.0003099,7]
[339672597,1727827845778,-218.053716,0.0003099,7]
[339672598,1727827845788,-531.062381,0.0003099,7]
[339672599,1727827845798,-113.09978014,0.0003099,7]
[339672600,1727827845926,-394.23116151,0.0003099,7]
[339672601,1727827845938,-23.73143935,0.0003099,7]
[339672602,1727827845950,-1626.618746,0.0003099,7]
[339672603,1727827845961,-1626.618746,0.0003099,7]
[339672604,1727827845970,-3880.0,0.00031,48]
[339672605,1727827845980,-750.0,0.00031,2]
[339672606,1727827845990,-398.89672,0.00031,7]
[339672607,1727827845999,-398.89672,0.00031,7]
[339672608,1727827846009,-151.0,0.00031,7]
[339672609,1727827846018,-176.106504,0.00031,7]
[339672610,1727827846028,-207.294669,0.00031,7]
[339672611,1727827846037,-176.106504,0.00031,7]
[339672612,1727827846046,-207.294669,0.00031,7]
[339672613,1727827846056,-631.096419,0.00031,7]
[339672614,1727827846065,-631.096419,0.00031,7]
[339672615,1727827846075,-151.0,0.00031114,7]
[339672616,1727827846084,-15.80806133,0.00031114,7]
[339672617,1727827846096,-161.05581467,0.00031114,7]
[339672618,1727827846105,-207.803299,0.00031114,7]
[339672619,1727827846115,-207.803299,0.00031114,7]
[339672620,1727827846124,-151.0,0.00031114,7]
[339672621,1727827846134,-282.025811,0.00031114,7]
[339672622,1727827846143,-282.025811,0.00031114,7]
[339672623,1727827846153,-151.0,0.00031114,7]
[339672624,1727827846162,-2500.0,0.00031124,5]
[339672625,1727827846172,-324.259207,0.00031124,7]
[339672626,1727827846181,-324.259207,0.00031124,7]
[339672627,1727827846191,-151.0,0.00031124,7]
[339672628,1727827846201,-5720.35487606,0.0003119,15]
[339672629,1727827846213,-500.0,0.00031335,120]
[339672630,1727827846223,-2000.0,0.00031369,2]
[339672631,1727827846232,-404.853311,0.00031478,7]
[339672632,1727827846242,-404.853311,0.00031478,7]
[339672633,1727827846252,-151.0,0.00031478,7]
[339672634,1727827846263,-151.0,0.00031478,7]
[339672635,1727827846274,-165.048948,0.00031478,7]
[339672636,1727827846283,-151.0,0.00031478,7]
[339672637,1727827846293,-151.0,0.00031478,7]
[339672638,1727827846303,-262.814826,0.00031478,7]
[339672639,1727827846312,-262.814826,0.00031478,7]
[339672640,1727827846322,-197.938352,0.00031478,7]
[339672641,1727827846332,-151.0,0.00031478,7]
[339672642,1727827846341,-197.938352,0.00031478,7]
[339672643,1727827846351,-776.502386,0.00031478,7]
[339672644,1727827846360,-188.90056327,0.00031478,7]
[339672647,1727828991722,457.382313,0.00010447,2]
[339672651,1727829034135,-597.6198,0.000105,2]
[339672653,1727829034144,-263.93662768,0.00010673,2]
[339672655,1727829034154,-1012.5527,0.00010773,2]
[339672656,1727829034164,-150.0,0.00010879,2]
[339672657,1727829034173,-4406.74261903,0.0001088,2]
[339672658,1727829034185,-2933.40559046,0.0001088,2]
[339672659,1727829034196,-825.40068476,0.0001088,2]
[339672660,1727829034305,-1262.29595931,0.0001088,2]
[339672661,1727829034317,-491.11230587,0.0001088,2]
[339672662,1727829034365,-784.65653678,0.0001088,2]
[339672987,1727829037919,-443.81585153,0.0001088,2]
[339672989,1727829037931,-1508.57123451,0.0001088,2]
[339672991,1727829037942,-330.20361932,0.0001088,2]
[339672994,1727829037953,-541.90799385,0.0001088,2]
[339672996,1727829037965,-5510.06098439,0.0001088,2]
[339672998,1727829037985,-13630.47362196,0.0001088,2]
[339673000,1727829037996,-1279.7631426,0.0001088,2]
[339673006,1727829038040,-276.14857609,0.0001088,2]
[339673008,1727829038051,-697.22222227,0.0001088,2]
[339673010,1727829038061,-574.98736815,0.0001088,2]
[339673015,1727829038100,-599.2800009,0.0001088,2]
[339673022,1727829038159,-61033.84908,0.0001088,2]
[339673166,1727829039959,-1050.63931294,0.0001088,2]
[339673167,1727829039970,-179.74110713,0.000109,3]
[339673246,1727829042988,-1320.25889287,0.000109,3]
[339673247,1727829042997,-2588.02320746,0.000109,2]
[339673248,1727829043007,-175.19255356,0.000109,2]
[339673249,1727829043016,-161.91,0.00010959,2]
[339673250,1727829043025,-177.82,0.00010959,2]
[339673251,1727829043035,-500.0,0.00010973,2]
[339673252,1727829043044,-393.74537232,0.00010973,2]
[339673253,1727829043054,-151.61,0.0001099,2]
[339673254,1727829043063,-150.99,0.00010999,2]
[339673255,1727829043073,-500.0,0.00010999,2]
[339673256,1727829043082,-310.9970469,0.00010999,2]
[339673257,1727829043092,-500.0,0.00010999,2]
[339673258,1727829043101,-500.0,0.00010999,2]
[339673259,1727829043110,-333.10205581,0.00010999,2]
[339673260,1727829043120,-500.0,0.00010999,2]
[339673261,1727829043129,-500.0,0.00010999,2]
[339673262,1727829043138,-500.0,0.00010999,2]
[339673263,1727829043148,-500.0,0.00010999,2]
[339673264,1727829043157,-356.36472446,0.00010999,2]
[339673265,1727829043166,-97652.45750964,0.00011,2]
[339673286,1727829045858,-1338.8375,0.00011,2]
[339673287,1727829045973,-14402.722184,0.00011,2]
[339673288,1727829045987,-7614.48000001,0.00011,2]
[339673289,1727829045998,-34315.22810957,0.00011,2]
[339673290,1727829046086,-8153.0537382,0.00011,2]
[339673291,1727829130791,5944.4904,0.000104,2]
[339673292,1727829825057,278.24,8.361e-05,2]
[339673293,1727829908197,1348.1,0.00010349,2]
[339673294,1727830063417,220.5,0.00010163,2]
[339673295,1727830094115,422.8,0.00010114,2]
[339673296,1727830128056,416.2455,0.00010384,2]
[339673297,1727830232175,-3275.5,0.00010484,2]
[339673298,1727830232288,-3281.11815459,0.00010484,2]
[339673299,1727830232400,-415.7922276,0.00010484,2]
[339673300,1727830232413,-1497.03961781,0.00010484,2]
[339673301,1727830232422,-278.24,0.00010625,2]
[339673302,1727830232431,-5589.02606474,0.00010712,2]
[339673339,1727830238049,-18310.97393526,0.00010712,2]
[339673340,1727830238059,-179.68,0.00010768,2]
[339673341,1727830238068,-500.0,0.00010773,2]
[339673342,1727830238078,-203.26293936,0.00010773,2]
[339673343,1727830238088,-500.0,0.00010773,2]
[339673344,1727830238097,-155.03,0.00010806,2]
[339673345,1727830238107,-150.0,0.00010877,2]
[339673346,1727830238116,-9117.5301062,0.00010889,2]
[339673347,1727830238125,-150.0,0.00010898,2]
[339673348,1727830238135,-499.99,0.00010898,2]
[339673349,1727830238145,-585.5,0.00010898,2]
[339673350,1727830238155,-1157.8117,0.00010899,2]
[339673351,1727830238165,-299.99,0.00010899,2]
[339673352,1727830238174,-2329.22088666,0.00010899,2]
[339673353,1727830238183,-1402.8163,0.00010899,2]
[339673354,1727830238192,-1880.6002,0.00010899,2]
[339673355,1727830238202,-773.24,0.00010899,2]
[339673356,1727830238211,-7649.3468,0.00010899,2]
[339673357,1727830238221,-1000.0,0.000109,2]
[339673358,1727830238230,-1734.4512,0.000109,2]
[339673359,1727830238240,-202.9393343,0.000109,2]
[339673360,1727830238249,-1500.0,0.000109,3]
[339673361,1727830238258,-162.20205652,0.000109,2]
[339673362,1727830238268,-175.19255356,0.000109,2]
[339673363,1727830238277,-2031.0,0.0001091,2]
[339673364,1727830238287,-160.45,0.00010959,2]
[339673365,1727830238297,-432.74,0.00010959,2]
[339673366,1727830238306,-250.0,0.00010959,2]
[339673367,1727830238315,-1500.0,0.00010959,2]
[339673369,1727830238326,-447.28366278,0.00010973,2]
[339673371,1727830238335,-185.1291855,0.00010973,2]
[339673373,1727830238344,-500.0,0.00010973,2]
[339673374,1727830238353,-508.70816678,0.00010973,2]
[339673376,1727830238363,-508.37469284,0.00010973,2]
[339673378,1727830238373,-500.0,0.00010973,2]
[339673380,1727830238383,-203.76477004,0.00010973,2]
[339673382,1727830238393,-500.11171323,0.00010973,2]
[339673384,1727830238402,-179.31398523,0.0001099,2]
[339673385,1727830238413,-151.61,0.0001099,2]
[339673386,1727830238422,-307266.98855445,0.00010998,2]
[339673387,1727830238432,-1096.38479334,0.00010999,3]
[339673388,1727830238441,-767.26088196,0.00010999,3]
[339673389,1727830238451,-500.0,0.00010999,2]
[339673390,1727830238460,-500.0,0.00010999,2]
[339673391,1727830238470,-150.24433941,0.00010999,2]
[339673392,1727830238479,-667619.79307345,0.00011,2]
[339673393,1727830238489,-250.0,0.00011,2]
[339673394,1727830238500,-250.0,0.00011021,2]
[339673395,1727830238509,-250.0,0.00011043,2]
[339673396,1727830238519,-4886.32,0.00011134,2]
[339673397,1727830238528,-422.30975046,0.00011336,2]
[339673398,1727830238538,-180.76,0.00011614,2]
[339673399,1727830238547,-180.76,0.00011673,2]
[339673400,1727830238557,-167.0,0.00011944,2]
[339673401,1727830238567,-211.34,0.0001198,2]
[339673402,1727830238576,-168.3,0.00012445,2]
[339673403,1727830238586,-150.0,0.000126,2]
[339673405,1727830238596,-316.14,0.000128,2]
[339673406,1727830238605,-1009.36,0.000128,2]
[339673408,1727830238617,-169.83,0.00012886,2]
[339673410,1727830238626,-278.24,0.00012889,2]
[339673412,1727830238636,-2700.12884138,0.00012899,2]
[339673414,1727830238645,-300.0,0.00013,2]
[339673416,1727830238656,-1000.0,0.00013264,2]
[339673418,1727830238666,-211.34,0.00013478,2]
[339673420,1727830238675,-153.28569643,0.00013599,2]
[339673422,1727830238685,-450.05,0.00013699,2]
[339673424,1727830238696,-200.0,0.00013699,2]
[339673426,1727830238705,-150.0,0.00013699,2]
[339673428,1727830238714,-2329.22088665,0.0001401,2]
[339673430,1727830238723,-150.0,0.00014059,2]
[339673432,1727830238732,-422.8,0.0001416,2]
[339673433,1727830238741,-150.0,0.0001442,2]
[339673435,1727830238750,-150.0,0.0001478,2]
[339673438,1727830238760,-1000.0,0.00014922,2]
[339673439,1727830238769,-211.34,0.00014975,2]
[339673441,1727830238778,-200.0,0.00015,2]
[339673443,1727830238788,-200.0,0.00015,2]
[339673445,1727830238797,-200.0,0.00015,2]
[339673447,1727830238806,-200.0,0.00015,2]
[339673449,1727830238816,-200.0,0.00015,2]
[339673451,1727830238826,-200.0,0.00015,2]
[339673453,1727830238835,-200.0,0.00015,2]
[339673456,1727830238845,-200.0,0.00015,2]
[339673457,1727830238854,-200.0,0.00015,2]
[339673459,1727830238863,-200.0,0.00015,2]
[339673461,1727830238873,-200.0,0.00015,2]
[339673463,1727830238882,-200.0,0.00015,2]
[339673465,1727830238891,-200.0,0.00015,2]
[339673467,1727830238901,-200.0,0.00015,2]
[339673469,1727830238911,-200.0,0.00015,2]
[339673471,1727830238922,-200.0,0.00015,2]
[339673473,1727830238931,-200.0,0.00015,2]
[339673475,1727830238940,-200.0,0.00015,2]
[339673476,1727830238949,-200.0,0.00015,2]
[339673477,1727830238958,-200.0,0.00015,2]
[339673478,1727830238968,-200.0,0.00015,2]
[339673479,1727830238978,-200.0,0.00015,2]
[339673480,1727830238987,-200.0,0.00015,2]